bitfinex/quotes_ETHUSD_20250222
["timestamp","ask_amount","ask_price","bid_price","bid_amount"]
[1740211454255,0.447654,2690.4,2690.0,0.27891753]
[1740211455442,0.7599,2690.3,2690.0,0.27891753]
[1740211460265,0.7599,2690.3,2690.0,3.99635753]
[1740211460584,0.7599,2690.3,2690.1,3.71732]
[1740211460866,0.7829,2690.5,2690.1,3.71732]
[1740211461043,0.7829,2690.5,2690.1,3.71724]
[1740211462192,0.7829,2690.5,2690.1,7.43449]
[1740211462371,0.7829,2690.5,2690.1,3.71724]
[1740211462748,0.7829,2690.5,2690.1,7.43449]
[1740211463041,0.7829,2690.5,2690.1,3.71724]
[1740211463236,0.7829,2690.5,2690.2,3.71719]
[1740211463633,0.7829,2690.5,2690.3,3.71699]
[1740211463973,0.8085,2690.7,2690.3,3.71694]
[1740211464677,0.8085,2690.7,2690.5,3.71676]
[1740211465465,0.8085,2690.7,2690.3,0.55]
[1740211465773,0.8085,2690.7,2690.4,3.71684]
[1740211467144,0.8085,2690.7,2690.4,3.71691]
[1740211467884,0.8085,2690.7,2690.3,0.55]
[1740211468382,0.8085,2690.7,2690.3,4.26698]
[1740211469479,0.8085,2690.7,2690.4,3.71689]
[1740211469666,0.8085,2690.7,2690.4,4.06559109]
[1740211470672,0.8085,2690.7,2690.4,3.71689]
[1740211470985,0.8085,2690.7,2690.5,0.55]
[1740211471184,0.8085,2690.7,2690.4,0.55]
[1740211472287,4.52509,2690.7,2690.4,0.55]
[1740211472780,4.52509,2690.7,2690.3,3.0]
[1740211472781,3.71672,2690.6,2690.3,3.263]
[1740211473292,4.52509,2690.7,2690.3,3.263]
[1740211477393,8.24171,2690.7,2690.3,3.263]
[1740211477883,4.52509,2690.7,2690.3,3.263]
[1740211478383,3.71674,2690.6,2690.3,3.263]
[1740211478584,4.52509,2690.7,2690.3,3.263]
[1740211478782,8.24169,2690.7,2690.3,3.263]
[1740211479096,4.52509,2690.7,2690.3,3.263]
[1740211480473,3.71675,2690.6,2690.3,3.263]
[1740211480676,4.52509,2690.7,2690.3,3.263]
[1740211481481,4.52509,2690.7,2690.3,6.98004]
[1740211481996,4.52509,2690.7,2690.3,3.263]
[1740211482898,4.52509,2690.7,2690.4,0.34866083]
[1740211484003,4.52509,2690.7,2690.3,3.263]
[1740211484906,4.52509,2690.7,2690.3,6.98004]
[1740211485067,0.8085,2690.7,2690.3,6.98004]
[1740211485708,0.8085,2690.7,2690.4,0.34867491]
[1740211486405,4.525,2690.7,2690.4,0.34867491]
[1740211486604,5.349132,2690.7,2690.4,0.34867491]
[1740211487305,5.349132,2690.7,2690.3,3.263]
[1740211487967,4.525,2690.7,2690.3,6.98005]
[1740211489368,4.525,2690.7,2690.3,3.263]
[1740211489907,4.525,2690.7,2690.4,0.34880407]
[1740211490791,0.8085,2690.7,2690.4,4.06569407]
[1740211490996,4.54042,2690.9,2690.5,3.71677]
[1740211491305,5.366067,2690.9,2690.4,3.71691]
[1740211492174,5.366067,2690.9,2690.4,3.71683]
[1740211492603,9.082367,2690.9,2690.4,3.71683]
[1740211492810,9.082367,2690.9,2690.5,0.34875616]
[1740211493010,9.082367,2690.9,2690.5,5.71875616]
[1740211493194,5.366047,2690.9,2690.5,5.71875616]
[1740211493575,9.082367,2690.9,2690.5,5.71875616]
[1740211494383,5.366047,2690.9,2690.6,0.34875616]
[1740211494789,0.5366047,2690.8,2690.6,0.34875616]
[1740211495312,4.2529747,2690.8,2690.6,0.34875616]
[1740211495706,4.2529747,2690.8,2690.5,5.37]
[1740211500223,0.7679,2690.6,2690.5,5.37]
[1740211500516,4.48454,2690.6,2690.5,5.37]
[1740211500712,3.71733,2690.1,2690.0,0.27891753]
[1740211500919,4.48523,2690.1,2689.9,5.37]
[1740211502310,0.7679,2690.1,2689.9,5.37]
[1740211502620,4.48523,2690.1,2689.9,5.37]
[1740211502914,0.7679,2690.1,2689.9,5.37]
[1740211503628,2.60048702,2690.6,2690.0,3.71747]
[1740211503629,0.8313,2690.5,2690.0,3.71747]
[1740211503803,0.8313,2690.5,2690.1,3.71727]
[1740211504900,0.8313,2690.5,2690.1,9.08727]
[1740211505227,4.54849,2690.2,2690.1,5.37]
[1740211510239,3.71754,2690.0,2689.8,5.37]
[1740211510397,3.71795,2689.7,2689.3,5.64547382]
[1740211510596,3.71817,2689.5,2689.3,5.90847382]
[1740211510802,3.71817,2689.5,2689.3,0.27547382]
[1740211511005,3.7183,2689.4,2689.3,0.27547382]
[1740211511212,3.7183,2689.4,2689.1,0.263]
[1740211511511,3.71845,2689.3,2689.0,5.633]
[1740211512319,3.71843,2689.3,2689.0,5.633]
[1740211512519,3.71869,2689.2,2689.0,5.633]
[1740211512739,3.71843,2689.3,2689.0,5.633]
[1740211512911,3.71858,2689.2,2689.0,5.633]
[1740211513539,3.71842,2689.4,2689.0,5.91106125]
[1740211514047,4.921235,2689.6,2689.0,5.91106125]
[1740211514238,3.71825,2689.5,2689.0,5.91106125]
[1740211514561,0.8313,2689.8,2689.0,5.91106125]
[1740211514845,5.003942,2689.8,2689.3,3.7184]
[1740211515010,1.286192,2689.8,2689.3,7.43677]
[1740211515339,1.286192,2689.8,2689.3,3.71837]
[1740211515557,3.71797,2689.7,2689.1,3.71863]
[1740211515763,0.5004162,2689.6,2689.1,3.71863]
[1740211515958,0.5004162,2689.6,2689.1,3.71861]
[1740211516164,0.8313,2689.8,2689.4,3.71829]
[1740211516342,3.71789,2689.7,2689.1,3.71864]
[1740211516549,7.43591,2689.7,2689.0,9.62981125]
[1740211517069,3.71819,2689.5,2689.0,9.62981125]
[1740211517350,1.203119,2689.4,2689.1,0.263]
[1740211517522,0.8313,2689.4,2689.1,0.263]
[1740211517909,0.816,2689.7,2689.1,0.263]
[1740211518116,0.816,2689.7,2689.2,3.71847]
[1740211518343,0.816,2689.7,2689.1,0.263]
[1740211518510,3.71803,2689.6,2689.1,0.263]
[1740211518712,0.82518,2689.6,2689.1,0.263]
[1740211518951,0.82518,2689.6,2689.1,3.98168]
[1740211519108,3.71817,2689.5,2689.1,0.263]
[1740211520211,4.54329,2689.6,2689.1,0.263]
[1740211523548,3.71823,2689.5,2689.1,0.263]
[1740211523750,4.625982,2689.5,2689.1,0.263]
[1740211524628,0.907752,2689.5,2689.1,0.263]
[1740211524827,0.8239,2689.4,2689.1,0.263]
[1740211525028,4.54229,2689.4,2689.1,0.263]
[1740211526628,4.54223,2689.4,2689.0,5.37]
[1740211526840,3.71859,2689.2,2689.0,5.633]
[1740211527720,4.54223,2689.4,2689.0,5.633]
[1740211527921,5.368263,2689.4,2689.0,5.633]
[1740211529045,3.71845,2689.3,2689.0,5.633]
[1740211532536,3.71868,2689.2,2689.0,5.37]
[1740211532750,1.649933,2689.4,2688.7,8.83153359]
[1740211532751,3.71909,2688.9,2688.7,14.46453359]
[1740211533050,3.71909,2688.9,2688.8,3.0]
[1740211534049,3.71881,2689.1,2688.8,4.72860082]
[1740211534422,4.462545,2689.1,2688.8,3.0]
[1740211535682,0.8239,2689.0,2688.8,3.0]
[1740211537559,4.462545,2689.1,2688.8,3.0]
[1740211537762,3.71881,2689.1,2688.8,3.0]
[1740211540969,6.09911539,2689.4,2688.8,3.0]
[1740211541121,1.632933,2689.4,2688.8,6.71911]
[1740211541328,1.632933,2689.4,2688.9,3.71893]
[1740211541762,1.632933,2689.4,2689.0,3.71885]
[1740211541963,0.8069,2689.6,2689.0,3.71877]
[1740211542161,0.8069,2689.6,2689.1,3.71863]
[1740211542953,4.52493,2689.6,2689.1,3.71863]
[1740211543157,4.52493,2689.6,2689.0,6.71882]
[1740211543360,4.52493,2689.6,2689.0,6.71876]
[1740211543668,4.52493,2689.6,2689.0,12.08876]
[1740211545675,0.8069,2689.6,2689.1,3.71871]
[1740211546350,3.7179,2689.7,2689.1,3.71859]
[1740211546687,3.7179,2689.7,2689.2,3.71857]
[1740211546986,3.7179,2689.7,2689.1,7.43722]
[1740211547286,3.7179,2689.7,2689.2,3.71853]
[1740211548049,1.543234,2689.8,2689.1,3.71861]
[1740211548255,5.261044,2689.8,2689.2,3.71857]
[1740211548476,5.261044,2689.8,2689.2,3.7185]
[1740211548477,0.8978654,2689.7,2689.2,3.7185]
[1740211548676,0.7997,2690.0,2689.5,3.71805]
[1740211548862,0.7997,2690.0,2689.6,3.71801]
[1740211549454,0.7997,2690.0,2689.7,3.71786]
[1740211549658,0.7997,2690.2,2689.8,3.7177]
[1740211549875,1.171412,2690.2,2689.7,3.71787]
[1740211550389,1.171412,2690.2,2689.9,3.71757]
[1740211550590,0.7997,2690.2,2689.8,3.0]
[1740211552182,4.51691,2690.2,2689.8,3.0]
[1740211553509,4.51691,2690.2,2689.6,6.71802]
[1740211553708,4.51691,2690.2,2689.6,10.43592]
[1740211553901,5.34031,2690.2,2689.8,3.0]
[1740211555315,3.71733,2690.1,2689.6,6.7179]
[1740211555481,1.6231,2690.2,2689.4,5.098518]
[1740211555482,4.51731,2689.9,2689.8,5.37]
[1740211561290,4.481,2689.4,2689.2,0.263]
[1740211561492,3.71843,2689.3,2689.2,0.263]
[1740211561816,3.71857,2689.2,2689.1,5.37]
[1740211562018,4.48046,2689.8,2689.1,12.08859]
[1740211562316,0.7627,2689.8,2689.3,3.71843]
[1740211562522,1.210732,2689.8,2689.5,3.71816]
[1740211562718,1.210732,2689.8,2689.5,3.71812]
[1740211562719,0.448032,2689.8,2689.5,3.71812]
[1740211562921,0.8121,2690.0,2689.2,7.26857]
[1740211563220,0.8121,2690.0,2689.4,3.71827]
[1740211563387,3.71762,2689.9,2689.4,3.71827]
[1740211563701,4.52957,2690.0,2689.4,7.43648]
[1740211563900,0.452945,2689.9,2689.5,3.71816]
[1740211564927,0.452945,2689.9,2689.4,3.71819]
[1740211566125,0.452945,2689.9,2689.2,3.0]
[1740211566317,0.8121,2689.6,2689.2,6.71854]
[1740211566520,0.8121,2689.6,2689.3,5.37]
[1740211567220,0.8121,2689.6,2689.3,9.08834]
[1740211567456,0.8121,2689.8,2689.5,3.71816]
[1740211567855,0.8121,2689.8,2689.3,9.08831]
[1740211568056,0.8121,2689.8,2689.4,3.71828]
[1740211568236,1.265058,2689.8,2689.4,3.71828]
[1740211568438,1.265058,2689.8,2689.4,3.71823]
[1740211568756,0.8121,2689.8,2689.3,9.36131426]
[1740211568957,0.8121,2689.8,2689.3,5.64295426]
[1740211569176,0.8121,2689.8,2689.4,3.71827]
[1740211569526,0.8121,2689.8,2689.5,0.263]
[1740211570756,0.8121,2689.8,2689.3,9.36138426]
[1740211571057,0.8121,2689.8,2689.4,0.263]
[1740211571269,1.265079,2689.8,2689.4,0.263]
[1740211572159,1.265079,2689.8,2689.4,3.98126]
[1740211572327,1.265079,2689.8,2689.4,0.263]
[1740211574267,4.53005,2689.7,2689.4,0.263]
[1740211574437,3.71816,2689.5,2689.3,5.37]
[1740211574631,4.5304,2689.4,2689.3,5.37]
[1740211576160,4.5304,2689.4,2689.0,0.263]
[1740211576329,3.71847,2689.3,2689.0,0.263]
[1740211576530,4.543357,2689.3,2688.9,3.0]
[1740211577369,0.824887,2689.3,2688.9,3.0]
[1740211577567,3.71858,2689.2,2688.9,3.0]
[1740211577770,0.824887,2689.3,2688.9,3.0]
[1740211578066,0.8121,2689.4,2688.9,3.0]
[1740211578254,4.5304,2689.4,2688.9,6.71897]
[1740211579855,4.5304,2689.4,2688.9,3.0]
[1740211580062,0.8121,2689.4,2688.9,3.0]
[1740211580263,3.71847,2689.3,2688.9,3.0]
[1740211581179,4.53053,2689.4,2688.9,3.0]
[1740211581353,5.355388,2689.4,2688.9,3.0]
[1740211582393,0.8121,2689.4,2689.1,3.0]
[1740211582793,4.53047,2689.4,2689.1,3.0]
[1740211583894,0.8121,2689.4,2689.1,3.0]
[1740211584193,5.32,2690.2,2689.2,3.71856]
[1740211584194,0.7862,2689.7,2689.2,3.71856]
[1740211584993,4.50423,2689.6,2689.1,3.71869]
[1740211585167,0.450423,2689.5,2689.1,3.71869]
[1740211586393,0.450423,2689.5,2689.0,6.98177]
[1740211587699,0.450423,2689.5,2689.1,3.71867]
[1740211588301,0.450423,2689.5,2689.0,6.98183]
[1740211588496,3.71818,2689.5,2689.0,6.98183]
[1740211588800,4.50426,2689.6,2689.0,10.70059]
[1740211589469,0.7944,2689.8,2689.0,3.263]
[1740211589671,0.7944,2689.1,2689.0,3.263]
[1740211589891,0.451306,2689.1,2689.0,3.263]
[1740211590121,0.7944,2689.4,2689.0,6.98185]
[1740211590483,4.51271,2689.4,2689.0,3.263]
[1740211591035,3.71858,2689.2,2689.0,3.263]
[1740211591451,3.71858,2689.2,2689.0,3.0]
[1740211591736,4.885088,2689.1,2688.9,5.37]
[1740211591889,8.603898,2689.1,2688.9,5.37]
[1740211592088,4.885068,2689.1,2688.9,5.37]
[1740211593489,3.71885,2689.0,2688.9,5.37]
[1740211593698,3.719,2688.9,2688.7,9.09453359]
[1740211593915,4.5794068,2688.9,2688.7,9.09453359]
[1740211594121,0.8604068,2688.9,2688.7,9.09453359]
[1740211594920,4.5794668,2688.9,2688.7,8.83153359]
[1740211596224,8.2985668,2688.9,2688.7,8.83153359]
[1740211596393,0.7944,2688.8,2688.7,8.83153359]
[1740211599144,4.51353,2688.8,2688.7,8.83153359]
[1740211599332,0.7944,2688.8,2688.7,8.83153359]
[1740211604132,1.245727,2688.8,2688.7,8.83153359]
[1740211604349,4.964857,2688.8,2688.7,8.83153359]
[1740211608158,1.245727,2688.8,2688.7,8.83153359]
[1740211608320,0.7944,2688.8,2688.7,8.83153359]
[1740211608829,4.5498,2689.0,2688.7,8.83153359]
[1740211609030,0.8309,2689.0,2688.7,12.55079359]
[1740211609209,0.8309,2689.3,2688.7,8.83153359]
[1740211609410,3.71864,2689.2,2688.7,8.83153359]
[1740211610531,0.8309,2688.9,2688.7,8.83153359]
[1740211611042,3.71913,2688.8,2688.7,8.83153359]
[1740211611225,0.8309,2688.9,2688.7,8.83153359]
[1740211611411,0.8309,2689.1,2688.7,8.83153359]
[1740211611604,4.54962,2689.1,2688.7,8.83153359]
[1740211611804,1.3313552,2689.1,2688.7,8.83153359]
[1740211612047,3.71908,2688.9,2688.7,8.83153359]
[1740211612621,3.71885,2689.0,2688.7,8.83153359]
[1740211612824,3.71899,2688.9,2688.7,8.83153359]
[1740211614275,3.71885,2689.0,2688.7,8.83153359]
[1740211614412,7.43778,2689.0,2688.7,8.83153359]
[1740211614612,8.15631399,2689.0,2688.7,8.83153359]
[1740211615638,3.71899,2688.9,2688.7,8.83153359]
[1740211616546,4.43738399,2689.0,2688.7,8.83153359]
[1740211616848,8.15632399,2689.0,2688.7,8.83153359]
[1740211617911,3.71911,2688.9,2688.7,8.83153359]
[1740211618125,4.48913,2688.8,2688.7,8.83153359]
[1740211638066,0.8987394,2688.9,2688.7,8.83153359]
[1740211640079,4.6177894,2688.9,2688.7,8.83153359]
[1740211640276,3.71905,2688.9,2688.7,8.83153359]
[1740211643379,0.7522,2689.0,2688.7,8.83153359]
[1740211643679,3.71899,2688.9,2688.7,8.83153359]
[1740211644997,4.53383,2688.8,2688.7,8.83153359]
[1740211648183,3.71913,2688.8,2688.7,8.83153359]
[1740211648371,4.544412,2688.8,2688.7,8.83153359]
[1740211650287,0.825282,2688.8,2688.7,8.83153359]
[1740211651996,4.544412,2688.8,2688.7,8.83153359]
[1740211652155,0.825282,2688.8,2688.7,8.83153359]
[1740211654769,0.825282,2688.8,2688.7,9.56173796]
[1740211654972,4.544412,2688.8,2688.7,9.56173796]
[1740211661162,0.825282,2688.8,2688.7,9.56173796]
[1740211662310,3.719,2688.9,2688.7,9.56173796]
[1740211662910,3.71886,2689.0,2688.7,9.56173796]
[1740211663105,0.7786,2689.1,2688.7,9.56173796]
[1740211663322,4.49733,2689.1,2688.7,9.56173796]
[1740211663675,3.71894,2689.0,2688.7,9.56173796]
[1740211664105,3.71907,2688.9,2688.7,9.56173796]
[1740211664515,3.71913,2688.8,2688.7,9.56173796]
[1740211665142,7.43815,2688.9,2688.7,9.56173796]
[1740211665501,3.71913,2688.8,2688.7,9.56173796]
[1740211665689,3.71913,2688.8,2688.7,8.83153359]
[1740211669712,0.821675,2688.9,2688.7,8.83153359]
[1740211672220,4.49739,2689.1,2688.7,8.83153359]
[1740211672221,4.49732,2689.1,2688.7,8.83153359]
[1740211673815,3.71859,2689.2,2688.7,8.83153359]
[1740211674020,3.71871,2689.1,2688.7,8.83153359]
[1740211674388,3.71859,2689.2,2688.7,8.83153359]
[1740211674584,4.544078,2689.2,2688.7,8.83153359]
[1740211675514,8.262748,2689.2,2688.7,8.83153359]
[1740211675689,3.71872,2689.1,2688.7,8.83153359]
[1740211676120,4.544138,2689.2,2688.7,8.83153359]
[1740211677094,3.71872,2689.1,2688.7,8.83153359]
[1740211678009,4.2549308,2689.1,2688.7,8.83153359]
[1740211678214,3.71885,2689.0,2688.7,8.83153359]
[1740211679588,3.719,2688.9,2688.7,8.83153359]
[1740211680417,3.71913,2688.8,2688.7,8.83153359]
[1740211687034,0.7821,2688.9,2688.7,8.83153359]
[1740211687242,3.71896,2689.0,2688.7,8.83153359]
[1740211687438,4.14453308,2688.9,2688.7,8.83153359]
[1740211688542,3.71913,2688.8,2688.7,8.83153359]
[1740211694843,4.14451308,2688.9,2688.7,8.83153359]
[1740211695045,8.7820508,2689.1,2688.7,8.83153359]
[1740211695342,4.2550208,2689.1,2688.7,8.83153359]
[1740211697046,3.71888,2689.0,2688.7,8.83153359]
[1740211697711,3.719,2688.9,2688.7,8.83153359]
[1740211697911,4.51640208,2688.9,2688.7,8.83153359]
[1740211698847,3.71913,2688.8,2688.7,8.83153359]
[1740211699061,3.71906,2688.9,2688.7,8.83153359]
[1740211699363,3.71913,2688.8,2688.7,8.83153359]
[1740211699562,3.71906,2688.9,2688.7,8.83153359]
[1740211700681,7.43818,2688.9,2688.7,8.83153359]
[1740211700879,3.71913,2688.8,2688.7,8.83153359]
[1740211702435,4.462818,2688.9,2688.7,8.83153359]
[1740211703137,3.71913,2688.8,2688.7,8.83153359]
[1740211711962,4.50233,2688.8,2688.7,8.83153359]
[1740211712316,5.3988438,2688.8,2688.7,8.83153359]
[1740211726698,4.6156438,2688.8,2688.7,8.83153359]
[1740211732983,5.3906438,2688.8,2688.7,8.83153359]
[1740211734717,0.8965138,2688.8,2688.7,8.83153359]
[1740211734922,4.462808,2688.9,2688.7,8.83153359]
[1740211735307,8.0438,2689.1,2688.7,8.83153359]
[1740211735308,3.71886,2689.0,2688.7,8.83153359]
[1740211739801,3.71851,2689.3,2688.7,12.55071359]
[1740211740001,3.71851,2689.3,2688.7,12.81371359]
[1740211740428,3.71858,2689.2,2688.7,12.81371359]
[1740211740613,3.71858,2689.2,2688.7,8.83153359]
[1740211740817,3.71871,2689.1,2688.7,9.09453359]
[1740211741129,3.71889,2689.0,2688.7,9.09453359]
[1740211741491,3.71885,2689.0,2688.7,9.09453359]
[1740211743430,4.462601,2689.0,2688.7,8.83153359]
[1740211746238,8.181581,2689.0,2688.7,8.83153359]
[1740211747936,4.462601,2689.0,2688.7,8.83153359]
[1740211748239,3.71867,2689.2,2688.7,12.55076359]
[1740211748539,3.7188,2689.1,2688.7,8.83153359]
[1740211750136,3.7191,2688.9,2688.7,8.83153359]
[1740211754042,3.71913,2688.8,2688.7,8.83153359]
[1740211757145,3.7191,2688.9,2688.7,8.83153359]
[1740211759851,3.71878,2689.1,2688.7,8.83153359]
[1740211760150,3.71885,2689.0,2688.7,8.83153359]
[1740211761520,4.167865,2689.3,2688.7,8.83153359]
[1740211761521,3.71871,2689.1,2688.7,8.83153359]
[1740211761722,3.71871,2689.1,2688.7,12.55077359]
[1740211762456,3.71853,2689.3,2688.7,14.20153359]
[1740211762793,3.7182,2689.5,2689.0,3.71874]
[1740211764150,3.7183,2689.4,2688.8,5.44812418]
[1740211764353,7.43644,2689.5,2688.9,3.71889]
[1740211764558,3.7182,2689.5,2688.8,3.71912]
[1740211764858,7.98117042,2689.5,2688.9,3.7189]
[1740211765265,3.71832,2689.4,2688.9,3.7189]
[1740211766157,3.71802,2689.6,2689.0,3.7188]
[1740211766468,3.71818,2689.5,2689.0,9.0888]
[1740211767074,3.71828,2689.5,2689.0,5.37]
[1740211767579,7.43652,2689.5,2689.0,9.0888]
[1740211767870,3.71824,2689.5,2689.0,9.0888]
[1740211768072,3.71824,2689.5,2689.1,3.71868]
[1740211769062,3.71798,2689.7,2689.1,3.71868]
[1740211769443,3.71818,2689.5,2689.0,5.37]
[1740211769649,3.71833,2689.4,2689.0,5.37]
[1740211770569,4.34581842,2689.7,2689.0,9.08883]
[1740211770741,3.71808,2689.6,2689.1,3.71871]
[1740211771169,4.34581842,2689.7,2689.2,3.71856]
[1740211771985,4.34581842,2689.7,2689.2,3.71849]
[1740211772190,3.71777,2689.8,2689.3,3.98136]
[1740211773771,3.71777,2689.8,2689.3,9.35136]
[1740211775397,3.71788,2689.7,2689.3,5.633]
[1740211775582,3.71809,2689.6,2689.3,5.633]
[1740211776472,3.71809,2689.6,2689.4,0.263]
[1740211776673,4.461684,2689.6,2689.4,0.263]
[1740211777394,0.743594,2689.6,2689.4,0.263]
[1740211777595,7.43571,2689.8,2689.4,0.263]
[1740211778074,7.43568,2689.8,2689.4,0.263]
[1740211778367,3.71783,2689.8,2689.4,0.263]
[1740211778896,18.271926,2690.0,2689.4,3.98126]
[1740211779091,3.71769,2689.9,2689.4,3.98126]
[1740211780099,3.71769,2689.9,2689.5,3.71815]
[1740211780320,5.9166286,2689.9,2689.5,3.71815]
[1740211780803,2.1989386,2689.9,2689.5,3.71809]
[1740211781095,14.554356,2690.0,2689.6,3.71796]
[1740211781302,18.271826,2690.0,2689.6,9.08796]
[1740211781684,18.271826,2690.0,2689.6,5.37]
[1740211782212,3.71768,2689.9,2689.6,5.37]
[1740211782383,1.81059814,2689.8,2689.6,5.37]
[1740211785008,5.52837814,2689.8,2689.6,5.37]
[1740211785429,1.81059814,2689.8,2689.6,5.37]
[1740211785874,5.52834814,2689.8,2689.6,5.37]
[1740211786724,3.71788,2689.7,2689.6,5.37]
[1740211788181,4.64250281,2689.7,2689.6,5.37]
[1740211790035,0.92462281,2689.7,2689.6,5.37]
[1740211790712,4.64250281,2689.7,2689.6,5.37]
[1740211791042,0.92462281,2689.7,2689.6,5.37]
[1740211792496,5.52834814,2689.8,2689.6,5.37]
[1740211793147,5.52834814,2689.8,2689.4,9.08829]
[1740211796023,3.71761,2689.9,2689.4,9.08829]
[1740211796223,3.71761,2689.9,2689.5,3.71815]
[1740211796600,15.364056,2690.0,2689.5,3.71815]
[1740211796803,19.081536,2690.0,2689.5,3.71815]
[1740211797003,22.799076,2690.0,2689.5,3.71815]
[1740211797316,5.9975776,2689.9,2689.4,13.06949]
[1740211797633,2.2799076,2689.9,2689.5,3.71814]
[1740211800218,2.2799076,2689.9,2689.6,3.71802]
[1740211800422,19.081536,2690.0,2689.6,3.71802]
[1740211800423,14.554356,2690.0,2689.7,3.71782]
[1740211801221,14.554356,2690.0,2689.7,3.98082]
[1740211801753,14.554356,2690.0,2689.7,0.263]
[1740211802045,14.554356,2690.0,2689.8,3.71774]
[1740211803513,14.554356,2690.0,2689.7,3.98087]
[1740211804915,14.554356,2690.0,2689.7,9.35087]
[1740211805614,14.554356,2690.0,2689.7,5.633]
[1740211806236,5.5448396,2689.9,2689.7,5.633]
[1740211806838,5.5448396,2689.9,2689.7,5.37]
[1740211807053,1.8271696,2689.9,2689.7,5.37]
[1740211810559,14.554356,2690.0,2689.7,5.37]
[1740211810740,14.554356,2690.0,2689.8,3.71765]
[1740211810949,14.554356,2690.0,2689.7,9.08787]
[1740211811264,14.554356,2690.0,2689.8,3.71768]
[1740211812683,14.554356,2690.0,2689.9,3.71761]
[1740211814185,14.554356,2690.0,2689.9,9.08761]
[1740211821762,14.554356,2690.0,2689.9,9.82008742]
[1740211825463,16.7648916,2690.0,2689.9,5.37]
[1740211825671,20.4823616,2690.0,2689.9,5.37]
[1740211825883,3.71788,2689.7,2689.5,0.263]
[1740211826581,16.7648916,2690.0,2689.7,3.71782]
[1740211826785,15.309456,2690.0,2689.7,3.71788]
[1740211827189,15.309456,2690.0,2689.6,5.44700418]
[1740211827413,15.309456,2690.0,2689.6,3.718]
[1740211827776,15.309456,2690.0,2689.6,1.72900418]
[1740211828102,14.554356,2690.0,2689.7,3.71788]
[1740211828283,14.554356,2690.0,2689.7,3.71781]
[1740211828618,14.554356,2690.0,2689.9,3.71761]
[1740211829212,14.554356,2690.0,2689.7,3.71781]
[1740211829507,14.554356,2690.0,2689.7,3.71778]
[1740211831817,14.554356,2690.0,2689.8,3.71766]
[1740211832605,14.554356,2690.0,2689.8,3.71765]
[1740211836321,14.554356,2690.0,2689.7,9.08788]
[1740211836890,14.554356,2690.0,2689.7,5.37]
[1740211837088,14.554356,2690.0,2689.7,9.08787]
[1740211837287,16.4570346,2690.0,2689.7,9.08787]
[1740211837484,14.554356,2690.0,2689.7,9.08787]
[1740211840349,14.554356,2690.0,2689.7,5.37]
[1740211840491,14.554356,2690.0,2689.9,3.71761]
[1740211849683,14.554356,2690.0,2689.9,9.08761]
[1740211862288,14.554356,2690.0,2689.9,10.81661418]
[1740211863574,14.554356,2690.0,2689.9,9.08761]
[1740211864651,20.5602616,2690.0,2689.9,5.37]
[1740211867390,3.71776,2689.8,2689.5,0.263]
[1740211867554,0.833,2689.7,2689.5,0.263]
[1740211868150,0.833,2689.7,2689.4,5.37]
[1740211868463,4.55145,2689.3,2689.2,0.263]
[1740211868669,0.833,2689.2,2689.0,5.633]
[1740211869486,0.833,2689.2,2689.0,5.37]
[1740211870185,3.71831,2689.4,2689.0,5.37]
[1740211870186,0.833,2689.1,2689.0,5.37]
[1740211870355,0.833,2689.3,2688.7,8.83153359]
[1740211870555,0.833,2688.8,2688.7,8.83153359]
[1740211871102,0.833,2689.0,2688.9,3.71895]
[1740211871304,0.833,2689.4,2688.9,3.71895]
[1740211871901,0.833,2689.4,2689.0,1.72900418]
[1740211872104,0.833,2689.4,2689.0,9.16648418]
[1740211872297,0.833,2689.4,2689.0,9.16649418]
[1740211872502,1.288103,2689.4,2689.1,3.71871]
[1740211873202,1.288103,2689.4,2689.2,3.7185]
[1740211873423,0.833,2689.8,2689.2,1.72900418]
[1740211873588,0.833,2689.8,2689.7,3.71788]
[1740211873791,0.833,2689.8,2689.6,3.71794]
[1740211873992,0.833,2689.8,2689.4,7.43638]
[1740211874309,0.833,2689.8,2689.5,3.71814]
[1740211874508,0.26068796,2689.7,2689.5,3.71814]
[1740211874696,0.26068796,2689.7,2689.4,3.71816]
[1740211875978,0.26068796,2689.7,2689.5,3.71806]
[1740211876288,0.26068796,2689.7,2689.3,0.263]
[1740211876483,0.26068796,2689.7,2689.4,3.71827]
[1740211876890,0.26068796,2689.7,2689.4,3.7182]
[1740211877089,0.26068796,2689.7,2689.5,3.71809]
[1740211877485,0.26068796,2689.7,2689.4,3.7182]
[1740211877898,0.26068796,2689.7,2689.3,0.263]
[1740211878090,0.833,2689.8,2689.5,3.71815]
[1740211878286,1.77387958,2689.9,2689.6,3.71802]
[1740211878579,1.77387958,2689.9,2689.8,3.71774]
[1740211878779,1.77387958,2689.9,2689.7,3.71788]
[1740211879020,15.366256,2690.0,2689.9,3.71761]
[1740211879219,15.366256,2690.0,2689.7,3.71788]
[1740211879829,15.366256,2690.0,2689.5,9.08806]
[1740211879992,15.366256,2690.0,2689.5,12.80615]
[1740211880910,15.366256,2690.0,2689.6,3.71797]
[1740211881116,1.9083676,2689.9,2689.5,9.08806]
[1740211881417,1.9083676,2689.9,2689.6,3.71799]
[1740211882417,1.9083676,2689.9,2689.6,3.71802]
[1740211883079,1.9083676,2689.9,2689.5,9.08806]
[1740211883916,1.9083676,2689.9,2689.5,5.37]
[1740211884118,4.50682,2689.6,2689.5,5.37]
[1740211884686,0.7888,2689.6,2689.5,5.37]
[1740211885017,0.7888,2689.9,2689.7,3.71787]